[Event "Titled Tuesday Blitz February 28 Late 2023"]
[White "Bernadskiy, Vitaliy"]
[Black "Karttunen, Mika"]
[WhiteFideId "14100371"]
[BlackFideId "502081"]
[WhiteElo "2488"]
[BlackElo "2396"]
[Result "1-0"]
[Round "06"]
[TimeControl "180+2"]
[Date "2023.02.28"]
[WhiteClock "0:01:54"]
[BlackClock "0:00:02"]

1. e4 {[%clk 0:03:00]}  c5 {[%clk 0:02:58]} 2. Nf3 {[%clk 0:02:59]}  Nc6 {[%clk 0:02:52]} 3. Bc4 {[%clk 0:02:56]}  e6 {[%clk 0:02:46]} 4. O-O {[%clk 0:02:55]}  a6 {[%clk 0:02:38]} 5. Re1 {[%clk 0:02:53]}  b5 {[%clk 0:02:36]} 6. Bf1 {[%clk 0:02:54]}  Bb7 {[%clk 0:02:35]} 7. c3 {[%clk 0:02:53]}  Nf6 {[%clk 0:02:32]} 8. a4 {[%clk 0:02:53]}  b4 {[%clk 0:02:23]} 9. d4 {[%clk 0:02:52]}  d5 {[%clk 0:02:15]} 10. exd5 {[%clk 0:02:45]}  Qxd5 {[%clk 0:01:50]} 11. c4 {[%clk 0:02:44]}  Qh5 {[%clk 0:01:41]} 12. d5 {[%clk 0:02:29]}  O-O-O {[%clk 0:01:40]} 13. Ng5 {[%clk 0:02:29]}  Qxd1 {[%clk 0:01:03]} 14. Rxd1 {[%clk 0:02:30]}  Rd7 {[%clk 0:00:59]} 15. Nd2 {[%clk 0:02:21]}  Nd4 {[%clk 0:00:52]} 16. Ndf3 {[%clk 0:02:09]}  Nxf3+ {[%clk 0:00:47]} 17. gxf3 {[%clk 0:02:07]}  h6 {[%clk 0:00:47]} 18. Ne4 {[%clk 0:02:06]}  Kd8 {[%clk 0:00:13]} 19. Bh3 {[%clk 0:02:04]}  Nxe4 {[%clk 0:00:05]} 20. fxe4 {[%clk 0:02:03]}  Be7 {[%clk 0:00:02]} 21. Be3 {[%clk 0:02:02]}  Rd6 {[%clk 0:00:02]} 22. Bxc5 {[%clk 0:02:01]}  b3 {[%clk 0:00:01]} 23. Bxd6 {[%clk 0:02:01]}  Bxd6 {[%clk 0:00:02]} 24. e5 {[%clk 0:01:55]}  Bxe5 {[%clk 0:00:01]} 25. dxe6+ {[%clk 0:01:56]}  Kc7 {[%clk 0:00:02]} 26. Rd7+ {[%clk 0:01:54]}  Kb8 {[%clk 0:00:02]} 27. e7 {[%clk 0:01:54]} 1-0


[Site "https://www.chess.com"]

[Event "Titled Tuesday Blitz February 28 Late 2023"]
[White "Yurovskykh, Oleksandr"]
[Black "Yuan, Qingyu"]
[WhiteFideId "14134020"]
[BlackFideId "8609772"]
[WhiteElo "2268"]
[BlackElo "2359"]
[Result "0-1"]
[Round "06"]
[TimeControl "180+2"]
[Date "2023.02.28"]
[WhiteClock "0:00:01"]
[BlackClock "0:00:11"]

1. d4 {[%clk 0:02:53]}  d5 {[%clk 0:02:59]} 2. Bf4 {[%clk 0:02:52]}  Nf6 {[%clk 0:03:00]} 3. e3 {[%clk 0:02:53]}  c5 {[%clk 0:03:00]} 4. c3 {[%clk 0:02:53]}  Nc6 {[%clk 0:02:59]} 5. Nd2 {[%clk 0:02:54]}  cxd4 {[%clk 0:02:56]} 6. exd4 {[%clk 0:02:55]}  Bf5 {[%clk 0:02:56]} 7. Ngf3 {[%clk 0:02:55]}  e6 {[%clk 0:02:56]} 8. Be2 {[%clk 0:02:49]}  Bd6 {[%clk 0:02:54]} 9. Bxd6 {[%clk 0:02:47]}  Qxd6 {[%clk 0:02:55]} 10. O-O {[%clk 0:02:48]}  h6 {[%clk 0:02:55]} 11. Re1 {[%clk 0:02:47]}  O-O {[%clk 0:02:55]} 12. h3 {[%clk 0:02:46]}  a6 {[%clk 0:02:51]} 13. a4 {[%clk 0:02:46]}  Qc7 {[%clk 0:02:42]} 14. Nb3 {[%clk 0:02:44]}  Ne4 {[%clk 0:02:40]} 15. Nfd2 {[%clk 0:02:36]}  Qf4 {[%clk 0:02:10]} 16. Nxe4 {[%clk 0:02:30]}  Bxe4 {[%clk 0:02:11]} 17. Bd3 {[%clk 0:02:22]}  Bxd3 {[%clk 0:02:07]} 18. Qxd3 {[%clk 0:02:23]}  Rab8 {[%clk 0:01:52]} 19. Nc5 {[%clk 0:02:19]}  Qd6 {[%clk 0:01:44]} 20. a5 {[%clk 0:02:14]}  e5 {[%clk 0:01:36]} 21. Qg3 {[%clk 0:02:05]}  Qe7 {[%clk 0:01:23]} 22. Nd3 {[%clk 0:01:53]}  e4 {[%clk 0:01:23]} 23. f3 {[%clk 0:01:53]}  f5 {[%clk 0:01:20]} 24. Nc5 {[%clk 0:01:33]}  Rbe8 {[%clk 0:01:08]} 25. b4 {[%clk 0:01:32]}  Rf6 {[%clk 0:01:03]} 26. f4 {[%clk 0:01:13]}  Na7 {[%clk 0:01:00]} 27. Kf2 {[%clk 0:01:07]}  Nb5 {[%clk 0:01:00]} 28. Ke2 {[%clk 0:00:46]}  Qf7 {[%clk 0:00:53]} 29. Kd2 {[%clk 0:00:42]}  Rg6 {[%clk 0:00:43]} 30. Qf2 {[%clk 0:00:40]}  Nd6 {[%clk 0:00:44]} 31. Kc2 {[%clk 0:00:36]}  Nc4 {[%clk 0:00:42]} 32. Re2 {[%clk 0:00:31]}  Re7 {[%clk 0:00:40]} 33. Rg1 {[%clk 0:00:29]}  b6 {[%clk 0:00:35]} 34. axb6 {[%clk 0:00:28]}  Rxb6 {[%clk 0:00:34]} 35. Ra1 {[%clk 0:00:15]}  Ra7 {[%clk 0:00:24]} 36. Kc1 {[%clk 0:00:15]}  Qe8 {[%clk 0:00:18]} 37. Rea2 {[%clk 0:00:16]}  Kh7 {[%clk 0:00:16]} 38. Qe2 {[%clk 0:00:16]}  Qg6 {[%clk 0:00:14]} 39. g4 {[%clk 0:00:16]}  Qf6 {[%clk 0:00:14]} 40. Qg2 {[%clk 0:00:15]}  Qh4 {[%clk 0:00:14]} 41. Qh1 {[%clk 0:00:08]}  Qg3 {[%clk 0:00:14]} 42. Rc2 {[%clk 0:00:04]}  Qxf4+ {[%clk 0:00:13]} 43. Kb1 {[%clk 0:00:04]}  a5 {[%clk 0:00:12]} 44. Qg2 {[%clk 0:00:01]}  Rf7 {[%clk 0:00:10]} 45. Qe2 {[%clk 0:00:01]}  axb4 {[%clk 0:00:10]} 46. cxb4 {[%clk 0:00:01]}  Rxb4+ {[%clk 0:00:10]} 47. Ka2 {[%clk 0:00:01]}  Ra7+ {[%clk 0:00:11]} 0-1


[Site "https://www.chess.com"]

[Event "Titled Tuesday Blitz February 28 Late 2023"]
[White "Cilek, Bora"]
[Black "Hambleton, Aman"]
[WhiteFideId "34502165"]
[BlackFideId "2606577"]
[WhiteElo "2108"]
[BlackElo "2511"]
[Result "0-1"]
[Round "06"]
[TimeControl "180+2"]
[Date "2023.02.28"]
[WhiteClock "0:00:32"]
[BlackClock "0:00:04"]

1. Nf3 {[%clk 0:02:59]}  b6 {[%clk 0:03:00]} 2. g3 {[%clk 0:02:59]}  Bb7 {[%clk 0:03:01]} 3. Bg2 {[%clk 0:03:00]}  e6 {[%clk 0:02:50]} 4. O-O {[%clk 0:03:00]}  Nf6 {[%clk 0:02:40]} 5. d4 {[%clk 0:02:58]}  c5 {[%clk 0:02:25]} 6. c4 {[%clk 0:02:57]}  cxd4 {[%clk 0:02:13]} 7. Qxd4 {[%clk 0:02:58]}  d6 {[%clk 0:02:12]} 8. Nc3 {[%clk 0:02:54]}  a6 {[%clk 0:02:09]} 9. Rd1 {[%clk 0:02:54]}  Nbd7 {[%clk 0:01:55]} 10. Ng5 {[%clk 0:02:47]}  Bxg2 {[%clk 0:01:54]} 11. Kxg2 {[%clk 0:02:48]}  Qc7 {[%clk 0:01:46]} 12. Nge4 {[%clk 0:02:46]}  Be7 {[%clk 0:00:40]} 13. Nxd6+ {[%clk 0:02:44]}  Bxd6 {[%clk 0:00:35]} 14. Qxd6 {[%clk 0:02:45]}  Qxd6 {[%clk 0:00:21]} 15. Rxd6 {[%clk 0:02:44]}  Ke7 {[%clk 0:00:22]} 16. Rd2 {[%clk 0:02:40]}  Rhc8 {[%clk 0:00:22]} 17. b3 {[%clk 0:02:40]}  b5 {[%clk 0:00:23]} 18. Ba3+ {[%clk 0:02:40]}  Ke8 {[%clk 0:00:24]} 19. Rad1 {[%clk 0:01:52]}  bxc4 {[%clk 0:00:23]} 20. Ne4 {[%clk 0:01:52]}  Nxe4 {[%clk 0:00:09]} 21. Rxd7 {[%clk 0:01:52]}  Nc5 {[%clk 0:00:10]} 22. Bxc5 {[%clk 0:01:45]}  Rxc5 {[%clk 0:00:11]} 23. bxc4 {[%clk 0:01:41]}  Rxc4 {[%clk 0:00:12]} 24. Rb7 {[%clk 0:01:41]}  Rc5 {[%clk 0:00:06]} 25. Rdd7 {[%clk 0:01:41]}  Rf5 {[%clk 0:00:06]} 26. e4 {[%clk 0:01:39]}  Rf6 {[%clk 0:00:06]} 27. e5 {[%clk 0:01:34]}  Rf5 {[%clk 0:00:07]} 28. g4 {[%clk 0:01:29]}  Rf4 {[%clk 0:00:07]} 29. Kg3 {[%clk 0:01:24]}  g5 {[%clk 0:00:07]} 30. h4 {[%clk 0:01:24]}  h6 {[%clk 0:00:08]} 31. hxg5 {[%clk 0:01:18]}  hxg5 {[%clk 0:00:08]} 32. a4 {[%clk 0:01:11]}  Kf8 {[%clk 0:00:06]} 33. a5 {[%clk 0:01:11]}  Rc8 {[%clk 0:00:07]} 34. Rdc7 {[%clk 0:00:50]}  Rxc7 {[%clk 0:00:06]} 35. Rxc7 {[%clk 0:00:51]}  Ra4 {[%clk 0:00:07]} 36. Rc5 {[%clk 0:00:51]}  Kg7 {[%clk 0:00:05]} 37. f3 {[%clk 0:00:50]}  Ra2 {[%clk 0:00:04]} 38. Kh3 {[%clk 0:00:49]}  Kg6 {[%clk 0:00:04]} 39. Kg3 {[%clk 0:00:49]}  Rd2 {[%clk 0:00:04]} 40. Rc6 {[%clk 0:00:48]}  Rd5 {[%clk 0:00:04]} 41. Rxa6 {[%clk 0:00:48]}  Rxe5 {[%clk 0:00:05]} 42. Ra8 {[%clk 0:00:49]}  Kf6 {[%clk 0:00:04]} 43. a6 {[%clk 0:00:49]}  Ra5 {[%clk 0:00:05]} 44. Kf2 {[%clk 0:00:50]}  Ke5 {[%clk 0:00:02]} 45. Rf8 {[%clk 0:00:40]}  f6 {[%clk 0:00:01]} 46. Ra8 {[%clk 0:00:39]}  Kf4 {[%clk 0:00:01]} 47. a7 {[%clk 0:00:39]}  Ra2+ {[%clk 0:00:02]} 48. Ke1 {[%clk 0:00:39]}  Kxf3 {[%clk 0:00:02]} 49. Rf8 {[%clk 0:00:37]}  Rxa7 {[%clk 0:00:02]} 50. Rxf6+ {[%clk 0:00:38]}  Kxg4 {[%clk 0:00:02]} 51. Rxe6 {[%clk 0:00:38]}  Rf7 {[%clk 0:00:03]} 52. Ke2 {[%clk 0:00:32]}  Kg3 {[%clk 0:00:03]} 53. Rg6 {[%clk 0:00:31]}  g4 {[%clk 0:00:03]} 54. Rg8 {[%clk 0:00:31]}  Kh3 {[%clk 0:00:03]} 55. Rh8+ {[%clk 0:00:32]}  Kg2 {[%clk 0:00:04]} 56. Rg8 {[%clk 0:00:32]}  g3 {[%clk 0:00:04]} 0-1


[Site "https://www.chess.com"]

[Event "Titled Tuesday Blitz February 28 Late 2023"]
[White "Prem, Pranav"]
[Black "Dourerassou, Jonathan"]
[WhiteFideId "30901057"]
[BlackFideId "628050"]
[WhiteElo "1970"]
[BlackElo "2499"]
[Result "0-1"]
[Round "06"]
[TimeControl "180+2"]
[Date "2023.02.28"]
[WhiteClock "0:00:09"]
[BlackClock "0:00:36"]

1. d4 {[%clk 0:03:00]}  Nf6 {[%clk 0:02:57]} 2. c4 {[%clk 0:03:00]}  g6 {[%clk 0:02:58]} 3. Nc3 {[%clk 0:02:59]}  Bg7 {[%clk 0:02:59]} 4. e4 {[%clk 0:02:59]}  O-O {[%clk 0:02:59]} 5. Nf3 {[%clk 0:03:00]}  d6 {[%clk 0:02:59]} 6. Be2 {[%clk 0:03:01]}  Nbd7 {[%clk 0:03:00]} 7. O-O {[%clk 0:03:01]}  c5 {[%clk 0:03:00]} 8. d5 {[%clk 0:02:55]}  a6 {[%clk 0:03:00]} 9. Nd2 {[%clk 0:02:43]}  b5 {[%clk 0:02:58]} 10. cxb5 {[%clk 0:02:44]}  axb5 {[%clk 0:02:59]} 11. Bxb5 {[%clk 0:02:35]}  Ba6 {[%clk 0:02:59]} 12. a4 {[%clk 0:02:19]}  Bxb5 {[%clk 0:02:44]} 13. Nxb5 {[%clk 0:02:20]}  Ne5 {[%clk 0:02:44]} 14. Qe2 {[%clk 0:01:56]}  c4 {[%clk 0:02:41]} 15. Nxc4 {[%clk 0:01:51]}  Nxc4 {[%clk 0:02:36]} 16. Qxc4 {[%clk 0:01:52]}  Qd7 {[%clk 0:02:36]} 17. Bd2 {[%clk 0:01:30]}  Rfc8 {[%clk 0:02:26]} 18. Qb4 {[%clk 0:01:14]}  Qg4 {[%clk 0:02:08]} 19. f3 {[%clk 0:00:59]}  Qh4 {[%clk 0:02:09]} 20. Rac1 {[%clk 0:00:50]}  Nd7 {[%clk 0:02:04]} 21. Bc3 {[%clk 0:00:33]}  Bh6 {[%clk 0:02:01]} 22. Qd4 {[%clk 0:00:29]}  Ne5 {[%clk 0:01:57]} 23. Ra1 {[%clk 0:00:20]}  Rc4 {[%clk 0:01:53]} 24. Qf2 {[%clk 0:00:20]}  Qxf2+ {[%clk 0:01:43]} 25. Kxf2 {[%clk 0:00:21]}  Nd3+ {[%clk 0:01:43]} 26. Ke2 {[%clk 0:00:21]}  Nf4+ {[%clk 0:01:43]} 27. Kf2 {[%clk 0:00:21]}  Rcxa4 {[%clk 0:01:36]} 28. Ra3 {[%clk 0:00:20]}  Rxa3 {[%clk 0:01:28]} 29. bxa3 {[%clk 0:00:20]}  f6 {[%clk 0:01:28]} 30. Ra1 {[%clk 0:00:19]}  Nd3+ {[%clk 0:01:28]} 31. Ke2 {[%clk 0:00:18]}  Nc5 {[%clk 0:01:29]} 32. Bb4 {[%clk 0:00:18]}  Nb3 {[%clk 0:01:25]} 33. Rd1 {[%clk 0:00:16]}  Kf7 {[%clk 0:01:22]} 34. Nd4 {[%clk 0:00:16]}  Nc1+ {[%clk 0:01:20]} 35. Kf2 {[%clk 0:00:16]}  Na2 {[%clk 0:01:20]} 36. Nc6 {[%clk 0:00:16]}  Nxb4 {[%clk 0:01:18]} 37. axb4 {[%clk 0:00:17]}  Ra2+ {[%clk 0:01:18]} 38. Kg3 {[%clk 0:00:17]}  Rb2 {[%clk 0:01:18]} 39. Ra1 {[%clk 0:00:15]}  f5 {[%clk 0:01:16]} 40. Ra7 {[%clk 0:00:13]}  Bg5 {[%clk 0:01:16]} 41. f4 {[%clk 0:00:13]}  Bf6 {[%clk 0:01:04]} 42. e5 {[%clk 0:00:13]}  dxe5 {[%clk 0:01:00]} 43. fxe5 {[%clk 0:00:13]}  Rb3+ {[%clk 0:00:56]} 44. Kf2 {[%clk 0:00:13]}  Bg5 {[%clk 0:00:47]} 45. d6 {[%clk 0:00:13]}  Be3+ {[%clk 0:00:47]} 46. Ke2 {[%clk 0:00:13]}  Bxa7 {[%clk 0:00:47]} 47. Nxa7 {[%clk 0:00:12]}  exd6 {[%clk 0:00:47]} 48. exd6 {[%clk 0:00:12]}  Ke6 {[%clk 0:00:45]} 49. b5 {[%clk 0:00:09]}  Kxd6 {[%clk 0:00:45]} 50. Kf2 {[%clk 0:00:08]}  Kc5 {[%clk 0:00:44]} 51. Nc6 {[%clk 0:00:08]}  Rxb5 {[%clk 0:00:41]} 52. Nd8 {[%clk 0:00:08]}  Kd5 {[%clk 0:00:36]} 53. Nf7 {[%clk 0:00:09]} 0-1


[Site "https://www.chess.com"]

[Event "Titled Tuesday Blitz February 28 Late 2023"]
[White "Bilych, Olexiy"]
[Black "Pham, Khoi"]
[WhiteFideId "14156504"]
[BlackFideId "1054988"]
[WhiteElo "2320"]
[BlackElo "2557"]
[Result "1-0"]
[Round "06"]
[TimeControl "180+2"]
[Date "2023.02.28"]
[WhiteClock "0:00:15"]
[BlackClock "0:00:14"]

1. d4 {[%clk 0:03:00]}  Nf6 {[%clk 0:02:59]} 2. c4 {[%clk 0:03:01]}  g6 {[%clk 0:02:58]} 3. f3 {[%clk 0:03:00]}  Bg7 {[%clk 0:02:58]} 4. e4 {[%clk 0:03:01]}  d6 {[%clk 0:02:57]} 5. Nc3 {[%clk 0:03:01]}  O-O {[%clk 0:02:57]} 6. Be3 {[%clk 0:03:00]}  a6 {[%clk 0:02:57]} 7. Qd2 {[%clk 0:02:59]}  Nbd7 {[%clk 0:02:58]} 8. Bd3 {[%clk 0:02:58]}  c5 {[%clk 0:02:58]} 9. d5 {[%clk 0:02:57]}  b5 {[%clk 0:02:58]} 10. cxb5 {[%clk 0:02:57]}  Qa5 {[%clk 0:02:58]} 11. Nge2 {[%clk 0:02:55]}  Ne5 {[%clk 0:02:56]} 12. O-O {[%clk 0:02:49]}  c4 {[%clk 0:02:50]} 13. Bc2 {[%clk 0:02:49]}  axb5 {[%clk 0:02:50]} 14. a4 {[%clk 0:02:39]}  b4 {[%clk 0:02:35]} 15. Nb5 {[%clk 0:02:39]}  Ba6 {[%clk 0:02:33]} 16. Ned4 {[%clk 0:02:36]}  Rfc8 {[%clk 0:02:27]} 17. Rfc1 {[%clk 0:01:46]}  c3 {[%clk 0:02:24]} 18. bxc3 {[%clk 0:01:46]}  bxc3 {[%clk 0:02:25]} 19. Qe2 {[%clk 0:01:45]}  Nfd7 {[%clk 0:02:21]} 20. f4 {[%clk 0:01:35]}  Nc4 {[%clk 0:02:20]} 21. Nc6 {[%clk 0:01:34]}  Rxc6 {[%clk 0:02:09]} 22. dxc6 {[%clk 0:01:34]}  Ndb6 {[%clk 0:02:08]} 23. Rab1 {[%clk 0:01:09]}  Nxe3 {[%clk 0:02:00]} 24. Qxe3 {[%clk 0:01:09]}  Nxa4 {[%clk 0:01:59]} 25. Bxa4 {[%clk 0:00:27]}  Qxa4 {[%clk 0:02:00]} 26. Nxc3 {[%clk 0:00:27]}  Bd4 {[%clk 0:01:35]} 27. Nxa4 {[%clk 0:00:24]}  Bxe3+ {[%clk 0:01:34]} 28. Kh1 {[%clk 0:00:24]}  Bxc1 {[%clk 0:01:33]} 29. Rxc1 {[%clk 0:00:25]}  Bc8 {[%clk 0:00:42]} 30. Nb6 {[%clk 0:00:22]}  Rb8 {[%clk 0:00:41]} 31. Nd5 {[%clk 0:00:16]}  Kf8 {[%clk 0:00:40]} 32. h3 {[%clk 0:00:09]}  e6 {[%clk 0:00:40]} 33. Nf6 {[%clk 0:00:10]}  Ke7 {[%clk 0:00:39]} 34. Nxh7 {[%clk 0:00:10]}  f6 {[%clk 0:00:39]} 35. e5 {[%clk 0:00:10]}  dxe5 {[%clk 0:00:38]} 36. fxe5 {[%clk 0:00:10]}  fxe5 {[%clk 0:00:38]} 37. Ng5 {[%clk 0:00:11]}  Ba6 {[%clk 0:00:30]} 38. Rc5 {[%clk 0:00:09]}  Kd6 {[%clk 0:00:28]} 39. Ne4+ {[%clk 0:00:09]}  Kc7 {[%clk 0:00:27]} 40. Rxe5 {[%clk 0:00:09]}  Kxc6 {[%clk 0:00:27]} 41. Rxe6+ {[%clk 0:00:10]}  Kd5 {[%clk 0:00:27]} 42. Rxa6 {[%clk 0:00:10]}  Kxe4 {[%clk 0:00:27]} 43. Rxg6 {[%clk 0:00:10]}  Kf5 {[%clk 0:00:26]} 44. Rg4 {[%clk 0:00:10]}  Rb1+ {[%clk 0:00:23]} 45. Kh2 {[%clk 0:00:11]}  Rb3 {[%clk 0:00:23]} 46. Rg3 {[%clk 0:00:11]}  Rb8 {[%clk 0:00:22]} 47. Rg4 {[%clk 0:00:11]}  Rb3 {[%clk 0:00:22]} 48. Rg8 {[%clk 0:00:11]}  Kf6 {[%clk 0:00:21]} 49. h4 {[%clk 0:00:12]}  Kf7 {[%clk 0:00:21]} 50. Rg5 {[%clk 0:00:12]}  Ra3 {[%clk 0:00:20]} 51. g3 {[%clk 0:00:13]}  Ra4 {[%clk 0:00:20]} 52. Kh3 {[%clk 0:00:14]}  Ra6 {[%clk 0:00:20]} 53. h5 {[%clk 0:00:13]}  Kf6 {[%clk 0:00:20]} 54. Kh4 {[%clk 0:00:13]}  Ra4+ {[%clk 0:00:19]} 55. g4 {[%clk 0:00:13]}  Ra1 {[%clk 0:00:19]} 56. Rg6+ {[%clk 0:00:14]}  Kf7 {[%clk 0:00:20]} 57. Rb6 {[%clk 0:00:13]}  Kg7 {[%clk 0:00:19]} 58. h6+ {[%clk 0:00:13]}  Kh7 {[%clk 0:00:19]} 59. Kh5 {[%clk 0:00:13]}  Kh8 {[%clk 0:00:19]} 60. g5 {[%clk 0:00:13]}  Ra8 {[%clk 0:00:17]} 61. Rb7 {[%clk 0:00:11]}  Rc8 {[%clk 0:00:16]} 62. Rd7 {[%clk 0:00:12]}  Ra8 {[%clk 0:00:16]} 63. g6 {[%clk 0:00:12]}  Ra5+ {[%clk 0:00:16]} 64. Kg4 {[%clk 0:00:12]}  Ra4+ {[%clk 0:00:16]} 65. Kf5 {[%clk 0:00:13]}  Ra8 {[%clk 0:00:17]} 66. Ke6 {[%clk 0:00:13]}  Re8+ {[%clk 0:00:17]} 67. Kf7 {[%clk 0:00:13]}  Rf8+ {[%clk 0:00:16]} 68. Ke7 {[%clk 0:00:12]}  Rg8 {[%clk 0:00:14]} 69. Rd8 {[%clk 0:00:12]}  Rxd8 {[%clk 0:00:11]} 70. Kxd8 {[%clk 0:00:12]}  Kg8 {[%clk 0:00:12]} 71. Ke7 {[%clk 0:00:13]}  Kh8 {[%clk 0:00:12]} 72. Kf6 {[%clk 0:00:13]}  Kg8 {[%clk 0:00:13]} 73. g7 {[%clk 0:00:13]}  Kh7 {[%clk 0:00:13]} 74. Kf7 {[%clk 0:00:13]}  Kxh6 {[%clk 0:00:13]} 75. g8=Q {[%clk 0:00:14]}  Kh5 {[%clk 0:00:14]} 76. Qg3 {[%clk 0:00:14]}  Kh6 {[%clk 0:00:14]} 77. Qh4# {[%clk 0:00:15]} 1-0


[Site "https://www.chess.com"]

[Event "Titled Tuesday Blitz February 28 Late 2023"]
[White "Oro, Faustino"]
[Black "Nefedov, Sergey"]
[WhiteFideId "20000197"]
[BlackFideId "24113417"]
[WhiteElo "1984"]
[BlackElo "2227"]
[Result "1-0"]
[Round "06"]
[TimeControl "180+2"]
[Date "2023.02.28"]
[WhiteClock "0:00:08"]
[BlackClock "0:00:05"]

1. e4 {[%clk 0:03:00]}  d5 {[%clk 0:02:59]} 2. exd5 {[%clk 0:03:00]}  Qxd5 {[%clk 0:03:00]} 3. Nc3 {[%clk 0:03:01]}  Qd8 {[%clk 0:03:00]} 4. d4 {[%clk 0:03:00]}  Nf6 {[%clk 0:03:00]} 5. Nf3 {[%clk 0:02:57]}  g6 {[%clk 0:02:59]} 6. Bc4 {[%clk 0:02:56]}  Bg7 {[%clk 0:03:00]} 7. O-O {[%clk 0:02:56]}  O-O {[%clk 0:03:00]} 8. Re1 {[%clk 0:02:56]}  a6 {[%clk 0:02:52]} 9. Bb3 {[%clk 0:02:52]}  b5 {[%clk 0:02:50]} 10. Ne5 {[%clk 0:02:35]}  Bb7 {[%clk 0:02:50]} 11. Bg5 {[%clk 0:02:18]}  Nbd7 {[%clk 0:02:49]} 12. Qe2 {[%clk 0:02:15]}  e6 {[%clk 0:02:26]} 13. Rad1 {[%clk 0:02:05]}  Nb6 {[%clk 0:02:07]} 14. Nxf7 {[%clk 0:01:38]}  Rxf7 {[%clk 0:02:05]} 15. Bxe6 {[%clk 0:01:32]}  Qd6 {[%clk 0:02:00]} 16. Qe5 {[%clk 0:01:21]}  Ne4 {[%clk 0:01:31]} 17. Bxf7+ {[%clk 0:01:11]}  Kxf7 {[%clk 0:01:30]} 18. Qxd6 {[%clk 0:01:11]}  Nxd6 {[%clk 0:01:28]} 19. Re7+ {[%clk 0:01:09]}  Kg8 {[%clk 0:01:25]} 20. Rxc7 {[%clk 0:01:07]}  Rc8 {[%clk 0:01:23]} 21. Rxc8+ {[%clk 0:01:02]}  Nbxc8 {[%clk 0:01:20]} 22. b3 {[%clk 0:00:58]}  Nf5 {[%clk 0:01:10]} 23. Ne2 {[%clk 0:00:51]}  b4 {[%clk 0:01:05]} 24. f3 {[%clk 0:00:32]}  h6 {[%clk 0:01:02]} 25. Bf4 {[%clk 0:00:31]}  g5 {[%clk 0:01:02]} 26. Be5 {[%clk 0:00:31]}  Nce7 {[%clk 0:00:53]} 27. c3 {[%clk 0:00:31]}  bxc3 {[%clk 0:00:48]} 28. Nxc3 {[%clk 0:00:31]}  Kf7 {[%clk 0:00:30]} 29. Bxg7 {[%clk 0:00:30]}  Kxg7 {[%clk 0:00:27]} 30. Kf2 {[%clk 0:00:23]}  Kf7 {[%clk 0:00:25]} 31. d5 {[%clk 0:00:21]}  Nd6 {[%clk 0:00:24]} 32. Ne4 {[%clk 0:00:19]}  Nec8 {[%clk 0:00:22]} 33. Ke3 {[%clk 0:00:18]}  Ke7 {[%clk 0:00:22]} 34. Kd4 {[%clk 0:00:17]}  Nb6 {[%clk 0:00:08]} 35. Nc3 {[%clk 0:00:11]}  Nd7 {[%clk 0:00:06]} 36. Re1+ {[%clk 0:00:12]}  Kd8 {[%clk 0:00:06]} 37. Re6 {[%clk 0:00:11]}  Kc7 {[%clk 0:00:04]} 38. Re1 {[%clk 0:00:06]}  Nf5+ {[%clk 0:00:04]} 39. Kd3 {[%clk 0:00:06]}  Kd6 {[%clk 0:00:03]} 40. Ke4 {[%clk 0:00:03]}  Ne7 {[%clk 0:00:02]} 41. Rd1 {[%clk 0:00:03]}  Nxd5 {[%clk 0:00:01]} 42. Nxd5 {[%clk 0:00:03]}  Nf6+ {[%clk 0:00:02]} 43. Kf5 {[%clk 0:00:03]}  Nxd5 {[%clk 0:00:02]} 44. Kg6 {[%clk 0:00:04]}  Ke5 {[%clk 0:00:02]} 45. Kxh6 {[%clk 0:00:05]}  Ne3 {[%clk 0:00:02]} 46. Re1 {[%clk 0:00:04]}  Kf4 {[%clk 0:00:03]} 47. Rxe3 {[%clk 0:00:03]}  Kxe3 {[%clk 0:00:03]} 48. Kxg5 {[%clk 0:00:03]}  Kf2 {[%clk 0:00:03]} 49. h4 {[%clk 0:00:04]}  Kxg2 {[%clk 0:00:04]} 50. f4 {[%clk 0:00:05]}  Kf3 {[%clk 0:00:03]} 51. h5 {[%clk 0:00:05]}  Bd5 {[%clk 0:00:02]} 52. h6 {[%clk 0:00:06]}  Ke4 {[%clk 0:00:03]} 53. f5 {[%clk 0:00:06]}  Bg8 {[%clk 0:00:03]} 54. Kg6 {[%clk 0:00:06]}  Ke5 {[%clk 0:00:04]} 55. f6 {[%clk 0:00:06]}  Ke6 {[%clk 0:00:04]} 56. Kg7 {[%clk 0:00:07]}  Bf7 {[%clk 0:00:04]} 57. h7 {[%clk 0:00:07]}  Be8 {[%clk 0:00:05]} 58. h8=Q {[%clk 0:00:08]} 1-0


[Site "https://www.chess.com"]

[Event "Titled Tuesday Blitz February 28 Late 2023"]
[White "Costachi, Mihnea"]
[Black "Sztokbant, Bernardo Vainzoff"]
[WhiteFideId "1217518"]
[BlackFideId "2115956"]
[WhiteElo "2456"]
[BlackElo "2222"]
[Result "1-0"]
[Round "06"]
[TimeControl "180+2"]
[Date "2023.02.28"]
[WhiteClock "0:01:25"]
[BlackClock "0:00:09"]

1. Nc3 {[%clk 0:03:00]}  Nc6 {[%clk 0:02:59]} 2. d4 {[%clk 0:03:00]}  d5 {[%clk 0:02:59]} 3. e4 {[%clk 0:02:58]}  dxe4 {[%clk 0:03:00]} 4. d5 {[%clk 0:02:59]}  Ne5 {[%clk 0:03:00]} 5. Nxe4 {[%clk 0:02:55]}  Nf6 {[%clk 0:03:00]} 6. Nxf6+ {[%clk 0:02:54]}  exf6 {[%clk 0:02:59]} 7. Nf3 {[%clk 0:02:52]}  Bd6 {[%clk 0:02:59]} 8. Be2 {[%clk 0:02:48]}  O-O {[%clk 0:02:59]} 9. O-O {[%clk 0:02:49]}  Re8 {[%clk 0:02:59]} 10. c4 {[%clk 0:02:46]}  Bf5 {[%clk 0:02:51]} 11. h3 {[%clk 0:02:37]}  Qd7 {[%clk 0:02:49]} 12. Nxe5 {[%clk 0:02:35]}  Bxe5 {[%clk 0:02:47]} 13. Bg4 {[%clk 0:02:35]}  Rad8 {[%clk 0:02:40]} 14. Qf3 {[%clk 0:02:32]}  Bxg4 {[%clk 0:02:39]} 15. hxg4 {[%clk 0:02:33]}  b5 {[%clk 0:02:35]} 16. cxb5 {[%clk 0:02:28]}  Qxb5 {[%clk 0:02:34]} 17. Rd1 {[%clk 0:02:24]}  c6 {[%clk 0:02:00]} 18. a4 {[%clk 0:02:10]}  Qc4 {[%clk 0:01:36]} 19. dxc6 {[%clk 0:02:00]}  Qxc6 {[%clk 0:01:29]} 20. Be3 {[%clk 0:01:48]}  Qxf3 {[%clk 0:01:27]} 21. gxf3 {[%clk 0:01:49]}  a6 {[%clk 0:01:12]} 22. Rxd8 {[%clk 0:01:41]}  Rxd8 {[%clk 0:01:13]} 23. Rb1 {[%clk 0:01:42]}  Rd3 {[%clk 0:00:50]} 24. b4 {[%clk 0:01:39]}  Ra3 {[%clk 0:00:50]} 25. b5 {[%clk 0:01:38]}  Rxa4 {[%clk 0:00:45]} 26. b6 {[%clk 0:01:39]}  g5 {[%clk 0:00:28]} 27. b7 {[%clk 0:01:35]}  Kg7 {[%clk 0:00:25]} 28. b8=Q {[%clk 0:01:33]}  Bxb8 {[%clk 0:00:25]} 29. Rxb8 {[%clk 0:01:34]}  Rc4 {[%clk 0:00:23]} 30. Rb6 {[%clk 0:01:30]}  a5 {[%clk 0:00:22]} 31. Rd6 {[%clk 0:01:30]}  a4 {[%clk 0:00:12]} 32. Bd4 {[%clk 0:01:30]}  a3 {[%clk 0:00:11]} 33. Bxf6+ {[%clk 0:01:30]}  Kg6 {[%clk 0:00:09]} 34. Bh8+ {[%clk 0:01:25]} 1-0


[Site "https://www.chess.com"]